Workbook

Sheet 표지
A5: 2022학년도
A6: 타이뻬이한국학교회계 세입세출 예산
A19: 타 이 뻬 이 한 국 학 교

Sheet 총칙
A2: 예 산 총 칙
B4: 제 1 조 2022학년도 타이뻬이한국학교회계 세입ㆍ세출 예산 총액은 세입ㆍ세출 각각 19,966,577 NTD로
B5: 하며, 세입ㆍ세출의 명세는 『세입ㆍ세출예산서』와 같다.
B7: 제2조 국가로부터 용도가 지정되어 교부된 경비 또는 수익자부담경비는 추가경정예산의 성립 전에
B8: 사용할 수 있으며, 이를 차기 추가경정예산에 반영한다.
B10: 제3조 동일 예산 관내의 항간 또는 목간에 예산의 과부족이 있는 경우에는 사학기관재무ㆍ회계규칙
B11: 제21조 제3항의 규정에 의하여 상호 전용할 수 있다.
B12: 단, 회계연도 경과 후에는 예산을 전용할 수 없으며, 업무추진비에 충당하기 위하여 다른
B13: 비목에서 전용할 수 없다.
B15: 제4조 다음의 경비에 부족이 생겼을 때에는 비목 상호간 또는 타 비목으로부터 이용할 수 있다.
B16: 단; 인건비 및 시설비의 예산은 다른 과목으로 이용할 수 없다.
B17: 1. 교원 및 직원 인건비, 연구비, 수당
B18: 2. 비정규직보수, 강사료
B19: 3. 세금, 공과금, 반환금

Sheet 세입
A1: 2022학년도 타이뻬이한국학교회계 세입․세출예산서
A2: (회계연도 2022년 3월 1일 ~ 2023년 2월 28일)
A3: □ 세입
A4: 【단위 : 현지화 NTD 1USD=27.7NTD】
A5: 구 분 | C5: (Y-1)예산 | D5: (Y-2)결산 | E5: (Y)예산 | F5: 증감 | G5: 산출기초(단위: NTD) | J5: 비고
C6: (A) | D6: (B) | E6: (C) | F6: (C-A)
A7: 학부모부담수입 | C7: =C9+C12+C18 -> 7,407,660 | D7: 0 | E7: =E9+E12+E16+E18 -> 6,983,700 | F7: =E7-C7 -> -423,960
B9: - 입학금 | C9: 595,000 | E9: =I9 -> 350,000 | F9: =E9-C9 -> -245,000 | G9: 1. 입학금 | I9: =SUM(I10:I11) -> 350,000
G10: ㅇ유치원 40,000NTD×5명 | H10: = | I10: =40000*5 -> 200,000
G11: ㅇ초등학생 30,000NTD×5명 | H11: = | I11: =30000*5 -> 150,000
B12: - 수업료 | C12: 4,421,000 | E12: =I12 -> 4,345,000 | F12: =E12-C12 -> -76,000 | G12: 1. 수업료 | I12: =SUM(I13:I14) -> 4,345,000
G13: ㅇ유치원 수업료 20명×80,000NTD | H13: = | I13: =80000*20 -> 1,600,000
G14: ㅇ초등학생 수업료 45명×61,000NTD | H14: = | I14: =61000*45 -> 2,745,000
G15: 2. 지난년도 수업료 | I15: 0
B16: - 학교운영지원비 | C16: 0 | D16: 0 | E16: =I16 -> 0 | F16: =E16-C16 -> 0 | G16: 1. 학교운영지원비 | I16: 0
B18: - 수익자부담경비 | C18: 2,391,660 | E18: =I18+I21+I27+I29+I25 -> 2,288,700 | F18: =E18-C18 -> -102,960 | G18: 1. 급식비 | I18: =SUM(I19:I20) -> 1,248,900
G19: ㅇ교직원 8명×50NTD×181일 | H19: = | I19: =181*50*8 -> 72,400
G20: ㅇ학생 65명×100NTD×181일 | H20: = | I20: =100*65*181 -> 1,176,500
G21: 2. 현장체험학습비 | I21: =I22+I23+I24 -> 90,500
G22: ㅇ초등 현장체험학습비 350NTD×45명×2회 | H22: = | I22: =350*45*2 -> 31,500 | M22: 2288700
G23: ㅇ유치원 현장체험학습비 350NTD×20명×2회 | H23: = | I23: =350*20*2 -> 14,000 | M23: 2343000
G24: ㅇ초등 수학여행비 15,000NTD×3명×1회 | H24: = | I24: =15000*3 -> 45,000 | M24: =M23-M22 -> 54300
G25: 3. 토요한글학교운영비 | I25: =SUM(I26:I26) -> 192,000
G26: ㅇ토요한글학교 수업료 9,600NTD×10명×2회 | H26: = | I26: =9600*2*10 -> 192,000
G27: 4. 방과후교육활동비 | I27: =SUM(I28:I28) -> 153,600
G28: ㅇ방과후교육활동비 200NTD×8명×24회×4강좌 | H28: = | I28: =200*8*24*4 -> 153,600
G29: 5. 기타수익자부담경비 | I29: =SUM(I30:I33) -> 603,700
G30: ㅇ통학버스비 140NTD×20명×182일 | H30: = | I30: =140*20*182 -> 509,600
G31: ㅇ유치원 간식비 20NTD×20명×180일 | H31: = | I31: =180*20*20 -> 72,000
G32: ㅇ졸업앨범(초등학교) 3명× 1,700 NTD | H32: = | I32: =1700*3 -> 5,100
G33: ㅇ졸업앨범(유치원) 10명× 1,700 NTD | H33: = | I33: =1700*10 -> 17,000
A34: 교육부지원금 | C34: =SUM(C36:C51) -> 10,777,112 | D34: 0 | E34: =SUM(E36,E38,E40,E44,E46,E42,E48) -> 11,039,377 | F34: =F36+F38+F40+F42+F44+F46+F48 -> 262,265
B36: - 현재채용교직원인건비 | C36: 5,722,556 | E36: =I36 -> 5,831,349 | F36: =E36-C36 -> 108,793 | G36: 1. 현재채용교직원인건비 | I36: =SUM(I37) -> 5,831,349
G37: ㅇ인건비 27.7NTD×210,508USD | H37: = | I37: =27.7*210518 -> 5,831,349
B38: - 운영비 | C38: 4,214,644 | E38: =I38 -> 4,098,769 | F38: =E38-C38 -> -115,875 | G38: 1. 운영비 | I38: =SUM(I39) -> 4,098,769
G39: ㅇ운영비 27.7NTD×147,970USD | H39: = | I39: =27.7*147970 -> 4,098,769
B40: - 임차료 | C40: 46,312 | E40: =I40 -> 38,974 | F40: =E40-C40 -> -7,338 | G40: 1. 임차료 | I40: =SUM(I41:I41) -> 38,974
G41: ㅇ나대지 27.7NTD×1,407USD | H41: = | I41: =27.7*1407 -> 38,974
B42: - 저소득층자녀지원 | C42: 150,000 | D42: 0 | E42: 84,000 | F42: =E42-C42 -> -66,000 | G42: 1. 저소득층자녀지원 | I42: =I43 -> 84,000
G43: ㅇ저소득층자녀지원금 84,000NTD×1회 | I43: 84,000
B44: - 방과후학교지원 | C44: 150,000 | D44: 0 | E44: =I44 -> 130,000 | F44: =E44-C44 -> -20,000 | G44: 1. 방과후학교지원 | I44: =SUM(I45) -> 130,000
G45: ㅇ방과후학교운영비 | H45: = | I45: 130,000
B46: - 시설(대수선)비 | E46: =I46 -> 432,000 | F46: =E46-C46 -> 432,000 | G46: 1. 시설(대수선)비 | I46: =I47 -> 432,000
G47: ㅇ운동장 우레탄바닥 교체 공사비(특이소요) | H47: = | I47: 432,000
B48: - 기타교육부지원금 | C48: 493,600 | D48: 0 | E48: =I48 -> 424,285 | F48: =E48-C48 -> -69,315 | G48: 1. 기타교육부지원 | I48: =SUM(I49:I51) -> 424,285
G49: ㅇ 토요한글학교운영비(재단지원금) | H49: = | I49: 153,600
G50: ㅇ교수학습재료구입비 | H50: = | I50: 270,685
A52: 자체수입 | C52: =SUM(C54+C58) -> 11,500 | D52: 0 | E52: =E54+E58 -> 11,500 | F52: =SUM(F54,F58) -> 0
B54: - 사용료및수수료 | C54: 5,500 | E54: =I54+I56 -> 5,500 | F54: =E54-C54 -> 0 | G54: 1.사용료 | I54: =SUM(I55) -> 3,500
G55: ㅇ 교실 및 강당 사용료 3,500NTD×1회 | H55: = | I55: 3,500
G56: 2. 수수료 | I56: =SUM(I57) -> 2,000
G57: ㅇ제증명발급 수수료 100NTD×20건 | H57: = | I57: =100*3+1700 -> 2,000
B58: - 잡수입 | C58: 6,000 | E58: =I58+I60+I61 -> 6,000 | F58: =E58-C58 -> 0 | G58: 1. 이자수입 | I58: =SUM(I59) -> 6,000
G59: ㅇ예금이자 3,000NTD×2회 | H59: = | I59: =3000*2 -> 6,000
G60: 2. 지난년도 수입 | I60: 0
G61: 3. 기타잡수입 | I61: =SUM(I62:I62) -> 0
H62: =
A63: 전입금 및 지원금 | C63: =SUM(C65:C70) -> 0 | D63: 0 | E63: =E65+E67+E69 -> 0 | F63: 0
B65: - 학교발전기금전입금 | C65: 0 | D65: 0 | E65: =I65 -> 0 | F65: =E65-C65 -> 0 | G65: 1. 학교발전기금전입금 | I65: =I66 -> 0
I66: 0
B67: - 법인전입금 | C67: 0 | D67: 0 | E67: =I67 -> 0 | F67: =E67-C67 -> 0 | G67: 1. 법인전입금 | I67: 0
B69: - 기타지원금 | C69: 0 | D69: 0 | E69: =I69 -> 0 | F69: =E69-C69 -> 0 | G69: 1. 기타지원금 | I69: 0
A71: 기타수입 | C71: =SUM(C73:C83) -> 2,000,000 | D71: 0 | E71: =E73+E75+E80+E82 -> 1,932,000 | F71: =SUM(F73,F75,F80,F82) -> -68,000
B73: - 과년도 수입 | C73: 0 | D73: 0 | E73: =I73 -> 0 | F73: =E73-C73 -> 0 | G73: 1. 과년도수입 | I73: 0
B75: - 이월금 | C75: 2,000,000 | E75: =I75+I78 -> 1,932,000 | F75: =E75-C75 -> -68,000 | G75: 1. 순세계잉여금 | I75: =I76 -> 1,500,000
G76: ㅇ 2021학년도 회계 잉여금 | H76: = | I76: 1,500,000
G77: 2. 계속비 | I77: 0
G78: 3. 이월사업비 | I78: 432,000
G79: ㅇ운동장 우레탄바닥 교체 공사비(특이소요) | H79: = | I79: 432,000
B80: - 적립금 | C80: 0 | D80: 0 | E80: =I80 -> 0 | F80: =E80-C80 -> 0 | G80: 1. 적립금 | I80: 0
B82: - 환차익 | C82: 0 | D82: 0 | E82: =I82 -> 0 | F82: =E82-C82 -> 0 | G82: 1. 환차익 | I82: 0
A84: 합 계 | C84: =C71+C63+C52+C34+C7 -> 20,196,272 | D84: 0 | E84: =SUM(E71,E63,E52,E34,E7) -> 19,966,577 | F84: =E84-C84 -> -229,696

Sheet 세출
A1: □ 세출
A2: 【단위 : 현지화 NTD 1USD=27.18NTD】
A3: 구 분 | C3: (Y-1)예산 | D3: (Y-2)결산 | E3: (Y)예산 | F3: 증감 | G3: 산출기초(단위: NTD) | J3: 비고
C4: (A) | D4: (B) | E4: (C) | F4: (C-A)
A5: 인건비 | C5: =SUM(C7,C24,C45) -> 12,666,260 | D5: 0 | E5: =SUM(E7,E24,E45) -> 12,363,460 | F5: =E5-C5 -> -302,800
B7: - 교원 | C7: 5,804,200 | E7: =SUM(I7,I10,I19,I21) -> 6,212,000 | F7: =E7-C7 -> 407,800 | G7: 1. 기본급 | I7: =SUM(I8:I9) -> 3,525,000
G8: ㅇ교사 45,000NTD×4명×12월 | H8: = | I8: =45000*4*12 -> 2,160,000
G9: ㅇ시간강사 500NTD×3명×5시간×182일 | H9: = | I9: =500*182*3*5 -> 1,365,000
G10: 2. 수당 | I10: =SUM(I11:I18) -> 2,093,000
G11: ㅇ담임수당 4,000NTD×4명×12월 | H11: = | I11: =4000*4*12 -> 192,000
G12: ㅇ부장수당 4,000NTD×2명×12월 | H12: = | I12: =4000*2*12 -> 96,000
G13: ㅇ복지수당 7,000NTD×4명×12월 | H13: = | I13: =7000*4*12 -> 336,000
G14: ㅇ주택수당 19,000NTD×4명×12월 | H14: = | I14: =19000*4*12 -> 912,000
G15: ㅇ부양가족 추가 주택수당 2,000NTD×1명×12월 | H15: = | I15: =2000*1*12 -> 24,000
G16: ㅇ경력수당 7,000NTD×4명×12월 | H16: = | I16: =7000*4*12 -> 336,000
G17: ㅇ보전수당 4,000NTD×4명×12월 | H17: = | I17: =4000*4*12 -> 192,000
G18: ㅇ시간외근무수당 250NTD×20시간 | H18: = | I18: 5,000
G19: 3. 복리후생비 | I19: =SUM(I20) -> 216,000
G20: ㅇ명절휴가비 45,000NTD×4명×2회×60% | H20: = | I20: =45000*4*2*0.6 -> 216,000
G21: 4. 부담금 | I21: =SUM(I22:I23) -> 378,000
G22: ㅇ건강보험기관부담금부담금 24,000NTD×12월 | H22: = | I22: =24000*12 -> 288,000
G23: ㅇ건강보험보충부담금(2020년도분) | H23: = | I23: 90,000
B24: - 직원 및 계약교직원 | C24: 6,382,060 | E24: =SUM(I24,I34,I40,I42) -> 5,941,460 | F24: =E24-C24 -> -440,600 | G24: 1. 기본급 | I24: =SUM(I25:I33) -> 5,022,060
G25: ㅇ실장 45,000NTD×1명×12월 | H25: = | I25: =45000*12 -> 540,000
G26: ㅇ행정원 34,000NTD×1명×12월 | H26: = | I26: =34000*12 -> 408,000
G27: ㅇ유치원 교육전담사 230NTD×1명×8시간×181일 | H27: = | I27: =230*8*181 -> 333,040
G28: ㅇ영어 강사수당 660NTD×1명×6시간×180일+660NTD×2명×4시간×180일 | H28: = | I28: =660*1*6*180+660*2*4*180 -> 1,663,200
G29: ㅇ중국어 강사수당 610NTD×2명×6시간×143일+550NTD×1명×2시간×143일 | H29: = | I29: =610*6*2*143+550*2*143 -> 1,204,060
G30: ㅇ외국어강사 부장수당 2,000NTD×2명×10월 | H30: = | I30: =2000*2*10 -> 40,000
G31: ㅇ통학버스 안전도우미 인건비 180NTD×2명×182일×6시간 | H31: = | I31: =180*182*6*2 -> 393,120
G32: ㅇ통학버스 기사 안건비(72일분) 335NTD×1명×72일×6시간+435NTD×1명×72일×6시간 | H32: = | I32: =335*72*6+435*72*6 -> 332,640
G33: ㅇ태권도 강사수당 900NTD×1명×3시간×40회 | H33: = | I33: =900*3*40 -> 108,000
G34: 2. 수당 | I34: =SUM(I35:I39) -> 557,000
G35: ㅇ직책수당(실장) 4,000NTD×1명×12월 | H35: = | I35: =4000*12 -> 48,000
G36: ㅇ경력수당(실장,행정원) 9,000NTD×12월 | H36: = | I36: =9000*12 -> 108,000
G37: ㅇ복지수당 7,000NTD×2명×12월 | H37: = | I37: =7000*2*12 -> 168,000
G38: ㅇ주택수당(실장) 19,000NTD×1명×12월 | H38: = | I38: =19000*12 -> 228,000
G39: ㅇ시간외근무수당 250NTD×20시간 | H39: = | I39: 5,000
G40: 3. 복리후생비 | I40: =SUM(I41:I41) -> 94,800
G41: ㅇ명절휴가비 39,500NTD×2명×2회×60% | H41: = | I41: =39500*2*2*0.6 -> 94,800
G42: 4. 부담금 | I42: =SUM(I43:I44) -> 267,600
G43: ㅇ건강보험기관부담금부담금 18,500NTD×12월 | H43: = | I43: =18500*12 -> 222,000
G44: ㅇ노동보험기관부담금 3,800NTD×12월 | H44: = | I44: =3800*12 -> 45,600
B45: - 퇴직적립금 | C45: 480,000 | E45: =SUM(I45,I47) -> 210,000 | F45: =E45-C45 -> -270,000 | G45: 1. 퇴휴금 | I45: =SUM(I46:I46) -> 210,000
G46: ㅇ대만국적자 직원 퇴휴금 12명 | H46: = | I46: 210,000
G47: 2.재외교육기여장려금 | I47: =SUM(I48:I48) -> 0
A49: 학교운영비 | C49: =SUM(C51,C81,C130,C154) -> 3,642,168 | D49: 0 | E49: =E51+E81+E130+E154 -> 3,257,880 | F49: =E49-C49 -> -384,288 | H49: =
B51: - 일반운영비 | C51: 1,459,118 | E51: =I51+I63+I77+I79 -> 1,283,580 | F51: =E51-C51 -> -175,538 | G51: 1. 교육지원부 운영 | I51: =SUM(I52:I62) -> 201,480
G52: ㅇ여비(국내) 200원×12명×2회×12월 | H52: = | I52: =200*12*2*12 -> 57,600
G53: ㅇ여비(국외출장) | H53: = | I53: 0
G54: ㅇ교직원 채용경비 5,000NTD×1회 | H54: = | I54: 5,000
G55: ㅇ현장학습 인솔 교직원 출장비 | H55: = | I55: =350*2*8 -> 5,600
G56: ㅇ거류비자 및 공작증 신청 4,500NTD×5명 | H56: = | I56: =4500*5 -> 22,500
G57: ㅇ교직원 귀임 및 부임 항공료 6,500NTD×5명 | H57: = | I57: =6500*5 -> 32,500
G58: ㅇ홈페이지 관리비 1,190NTD×12월 | H58: = | I58: =1190*12 -> 14,280
G59: ㅇ예금잔액증명 발급수수료 500NTD×5회 | H59: = | I59: =500*5 -> 2,500
G60: ㅇ타행송금및환전수수료(납입금환불) 30NTD×50회 | H60: = | I60: =30*50 -> 1,500
G61: ㅇ행정장비 유지보수 10,00NTD×1회 | H61: = | I61: 10,000
G62: ㅇ행정장비 소모품 구입 10,000NTD×5회 | H62: = | I62: =10000*5 -> 50,000
G63: 2. 학교시설장비유지 | I63: =SUM(I64:I76) -> 1,022,100
G64: ㅇ전화 및 인터넷요금 6,500N*12월 | H64: = | I64: =6500*12 -> 78,000
G65: ㅇ전기요금 20,000NTD×12월 | H65: = | I65: =20000*12 -> 240,000
G66: ㅇ상하수도요금 500NTD×12월 | H66: = | I66: =500*12 -> 6,000
G67: ㅇ우편요금 200NTD×12월 | H67: = | I67: =200*12 -> 2,400
G68: ㅇ건물 청소용역 24,000NTD×10월 | H68: = | I68: =24000*10 -> 240,000
G69: ㅇ화장실 소모품 및 청소용품 2,000NTD×4회 | H69: = | I69: =2000*4 -> 8,000
G70: ㅇ기계경비용역료 7,000NTD×12월 | H70: = | I70: =7000*12 -> 84,000
G71: ㅇ시설소모품구입 10,000NTD×10회 | H71: = | I71: =10000*10 -> 100,000
G72: ㅇ소방정밀점검 15,000NTD×1회 | H72: = | I72: =12000*1 -> 12,000
G73: ㅇ승강기안전관리용역 3,000NTD×12월 | H73: = | I73: =3000*12 -> 36,000
G74: ㅇ전기안전관리용역 3,200NTD×12월 | H74: = | I74: =3200*12 -> 38,400
G75: ㅇ지하비상용발전기점검비용 27,300NTD×1회 | H75: = | I75: 27,300
G76: ㅇ소규모수선 10,000NTD×15회 | H76: = | I76: =10000*15 -> 150,000
G77: 3. 교직원 복지 및 역량강화 | I77: =SUM(I78:I78) -> 0
G79: 4. 임차료 | I79: =SUM(I80:I80) -> 60,000
G80: ㅇ나대지 60,000NTD×1년 | H80: = | I80: 60,000
B81: - 교수학습 활동비 | C81: 1,153,200 | E81: =SUM(I81,I87,I89,I91,I96,I102,I104,I111,I115,I117,I119,I124,I126) -> 1,075,100 | F81: =E81-C81 -> -78,100 | G81: 1. 교과활동지원 | I81: =SUM(I82:I86) -> 372,000
G82: ㅇ학습준비물(교수학습자료지원금) 5,000NTD×65명 | H82: = | I82: =5000*65 -> 325,000
G83: ㅇ사무용품 구입(교수학습자료지원금) 2,000NTD×5회 | H83: = | I83: =2000*5 -> 10,000
G84: ㅇ복사용지(교수학습자료지원금) 5,000NTD×2회 | H84: = | I84: =5000*2 -> 10,000
G85: ㅇ행정장비 소모품(교수학습자료지원금) 4,000NTD×6회 | H85: = | I85: 24,000
G86: ㅇ보결수당 150NTD×20시간 | H86: = | I86: =150*20 -> 3,000
G87: 2. 예체능교과활동(초등학교) | I87: =SUM(I88:I88) -> 9,000
G88: ㅇ태권도복 600NTD×15벌 | H88: = | I88: =600*15 -> 9,000
G89: 3. 예체능교과활동(유치원) | I89: =SUM(I90:I90) -> 0
H90: =
G91: 4. 영어교과활동 | I91: =SUM(I92:I95) -> 71,200
G92: ㅇ학습준비물 100NTD×45명×2회 | H92: = | I92: =100*45*2 -> 9,000
G93: ㅇ공책 10NTD×45부×6회 | H93: = | I93: =10*45*6 -> 2,700
G94: ㅇ교재 1,300NTD×45부 | H94: = | I94: =1300*45 -> 58,500
G95: ㅇ행사물품 1,000NTD×1회 | H95: = | I95: =1000*1 -> 1,000
G96: 5. 중국어교과활동 | I96: =SUM(I97:I101) -> 48,900
G97: ㅇ학습준비물 100NTD×45명×2회 | H97: = | I97: =100*45*2 -> 9,000
G98: ㅇ공책 10NTD×45부×6회 | H98: = | I98: =10*45*6 -> 2,700
G99: ㅇ교재 400NTD×90부 | H99: = | I99: =400*90 -> 36,000
G100: ㅇ행사물품 1,000NTD×1회 | H100: = | I100: =1000*1 -> 1,000
G101: ㅇ중국어능력평가 우편요금 50NTD×4회 | H101: = | I101: 200
G102: 6.유치원 교과활동 | I102: =SUM(I103:I103) -> 100,000
G103: ㅇ학습준비물 5,000NTD×20명 | H103: = | I103: =5000*20 -> 100,000
G104: 7. 자율활동(초등학교) | I104: =SUM(I105:I110) -> 88,000
G105: ㅇ학급운영비 400NTD×45명×2회 | H105: = | I105: =400*45*2 -> 36,000
G106: ㅇ환경정리 500NTD×6학급 | H106: = | I106: 3,000
G107: ㅇ학예회 무대장식 4,000NTD×1회 | H107: = | I107: =4000*1 -> 4,000
G108: ㅇ학예회 준비물품 400NTD×45명 | H108: = | I108: =400*45 -> 18,000
G109: ㅇ체육대회 준비물품 400NTD×65개 | H109: = | I109: =400*65 -> 26,000
G110: ㅇ체육대회 장소임대 1,000NTD×1회 | H110: = | I110: 1,000
G111: 8. 자율활동(유치원) | I111: =SUM(I112:I114) -> 24,500
G112: ㅇ학급운영비 400NTD×20명×2회 | H112: = | I112: =400*20*2 -> 16,000
G113: ㅇ학예회경비 400NTD×20명 | H113: = | I113: =400*20 -> 8,000
G114: ㅇ환경정리 500NTD×1학급 | H114: = | I114: 500
A115: · | G115: 9. 교무업무운영 | I115: =SUM(I116:I116) -> 4,000
G116: ㅇ학교교육계획서 제작 400NTD×10부 | H116: = | I116: 4,000
G117: 10 입학식 및 졸업식(초등학교) | I117: =SUM(I118:I118) -> 15,000
G118: ㅇ입학식 선물 1000NTD×15명 | H118: = | I118: =1000*15 -> 15,000
G119: 11. 입학식 및 졸업식(유치원) | I119: =SUM(I120:I123) -> 20,400
G120: ㅇ입학선물 1,000NTD×10명 | H120: = | I120: =1000*10 -> 10,000
G121: ㅇ졸업사진 촬영(교원) 800NTD×2명 | H121: = | I121: =800*2 -> 1,600
G122: ㅇ졸업앨범 제작(학교보관용) 800NTD×1부 | H122: = | I122: =800*1 -> 800
G123: ㅇ졸업선물 800NTD×10명 | H123: = | I123: =800*10 -> 8,000
G124: 12. 토요한글학교 운영(재외동포재단지원금) | I124: =SUM(I125:I125) -> 153,600
G125: ㅇ강사비 1,200NTD×4시간×16주 | H125: = | I125: =1200*2*4*16 -> 153,600
G126: 13. 방과후학교운영 | I126: =SUM(I127:I129) -> 168,500
G127: ㅇ강사수당(교육부지원금) 500NTD×260시간 | H127: = | I127: =500*260 -> 130,000
G128: ㅇ강사수당(학교자체지원금) 550NTD×70시간 | H128: = | I128: =550*70 -> 38,500
A130: - 학생복리비 | C130: 946,850 | E130: =I130+I134+I140+I142+I147+I150+I152 -> 816,200 | F130: =E130-C130 -> -130,650 | G130: 1. 학생보건안전관리 | I130: =SUM(I131:I133) -> 62,500
G131: ㅇ학교안전공제회비(학생,교직원) | H131: = | I131: 30,000
G132: ㅇ응급학생 병원후송 500NTD×5회 | H132: = | I132: =500*5 -> 2,500
G133: ㅇ약품 3,000NTD×10회 | H133: = | I133: =3000*10 -> 30,000
G134: 2. 학교환경위생관리 | I134: =SUM(I135:I139) -> 238,300
G135: ㅇ정수기 필터교환 650NTD×3대×4회 | H135: = | I135: =650*3*4 -> 7,800
G136: ㅇ정수기 소독 3,500NTD×3대×1회 | H136: = | I136: =3500*3 -> 10,500
G137: ㅇ저수조 청소 5,000NTD×2회 | H137: = | I137: =5000*2 -> 10,000
G138: ㅇ방학중 대청소 45,000NTD×2회 | H138: = | I138: =2*45000 -> 90,000
G139: ㅇ교사 소독 10,000NTD×12회= | H139: = | I139: =10000*12 -> 120,000
G140: 3. 학교급식비 지원 | I140: =SUM(I141:I141) -> 54,300
G141: ㅇ급식실 식재료 구입비 지원 10,860NTD×5주 | H141: = | I141: =10860*5 -> 54,300
G142: 4. 통학차량 운영지원 | I142: =SUM(I143:I146) -> 278,400
G143: ㅇ차량 보험료 40,00NTD×2대×1년 | H143: = | I143: =40000*2 -> 80,000
G144: ㅇ차량 등록세 및 연료세 15,00NTD×2대×1년 | H144: = | I144: =15000*2 -> 30,000
G145: ㅇ주차요금 7,000NTD×4분기 | H145: = | I145: =7000*4 -> 28,000
G146: ㅇ차량 유류 15,600NTD×9월 | H146: = | I146: =15600*9 -> 140,400
G147: 5. 현장학습 지원 | I147: =SUM(I148:I149) -> 38,700
G148: ㅇ현장학습 차량 임차비 11,700NTD×1회 | H148: = | I148: 11,700
G149: ㅇ현장학습 차량비 지원(기사인건비) 750NTD×1명×12회×3시간 | H149: = | I149: =750*1*12*3 -> 27,000
G150: 6. 저소득층자녀 학비지원(교육부지원금) | I150: =I151 -> 84,000
G151: ㅇ저소득층 자녀 학비 지원금 84,000NTD | H151: = | I151: 84,000
G152: 7. 기타 학생복지 지원 | I152: =I153 -> 60,000
G153: ㅇ신임 교직원 코로나 격리 비용 지원 12,000NTD×5명 | H153: = | I153: =12000*5 -> 60,000
B154: - 업무추진비 | C154: 83,000 | E154: =SUM(I154) -> 83,000 | F154: =E154-C154 -> 0 | G154: 1. 기관업무추진비 | I154: =SUM(I155:I156) -> 83,000
G155: ㅇ경조사비 1,500NTD×2회 | H155: = | I155: =1500*2 -> 3,000
G156: ㅇ교직원 간담회 500NTD×20명×8회 | H156: = | I156: =500*20*8 -> 80,000
A157: 자산취득비 | C157: =C159 -> 20,000 | D157: 0 | E157: =E159 -> 20,000 | F157: =E157-C157 -> 0
B159: - 자산취득비 | C159: 20,000 | E159: =I159 -> 20,000 | F159: =E159-C159 -> 0 | G159: 1. 교육환경개선 | I159: =SUM(I160) -> 20,000
G160: ㅇ 사무용 비품 5,000NTD×4회 | H160: = | I160: =5000*4 -> 20,000
A161: 시설(대수선)비 | C161: =SUM(C163) -> 1,476,184 | D161: 0 | E161: =SUM(E163) -> 2,036,537 | F161: =E161-C161 -> 560,353 | H161: =
B163: - 시설비 | C163: 1,476,184 | E163: =I163 -> 2,036,537 | F163: =E163-C163 -> 560,353 | G163: 1. 시설비 | I163: =SUM(I164:I165) -> 2,036,537
G164: ㅇ 운동장 우레탄 바닥 교체 공사 | H164: = | I164: 432,000
G165: ㅇ 긴급 시설 개보수비 | H165: = | I165: 1,604,537
A166: 수익자부담경비 | C166: =SUM(C168,C174,C176,C185,C191) -> 2,391,660 | D166: 0 | E166: =SUM(E168,E174,E176,E185,E191) -> 2,288,700 | F166: =E166-C166 -> -102,960 | H166: =
B168: - 현장학습비 | C168: 95,000 | E168: =SUM(I168,I170,I172) -> 90,500 | F168: =E168-C168 -> -4,500 | G168: 1. 현장체험학습(초등학교) | I168: =SUM(I169:I169) -> 31,500
G169: ㅇ초등 현장체험학습비 350NTD×45명×2회 | H169: = | I169: 31,500
G170: 2. 현장체험학습(유치원) | I170: =SUM(I171:I171) -> 14,000
G171: ㅇ유치원 현장체험학습비 350NTD×20명×2회 | H171: = | I171: 14,000
G172: 3. 수학여행 | I172: =SUM(I173:I173) -> 45,000
G173: ㅇ초등 수학여행비 15,000NTD×3명×1회 | H173: = | I173: =15000*3 -> 45,000
B174: - 학생수련활동비 | C174: 0 | D174: 0 | E174: 0 | F174: =E174-C174 -> 0 | G174: 1. 수련활동비 | I174: 0
B176: - 학교급식비 | C176: 1,419,360 | E176: =SUM(I176,I178,I183,I181) -> 1,320,900 | F176: =E176-C176 -> -98,460 | G176: 1. 급식 재료구입비 | I176: =SUM(I177) -> 500,700
G177: ㅇ 식재료 구입비 15,000NTD×33주 | H177: = | I177: =15000*33+5700 -> 500,700
G178: 2. 급식종사원인건비 | I178: =SUM(I179:I180) -> 732,000
G179: ㅇ 조리사 500NTD×183일×4시간 | H179: = | I179: =500*183*4 -> 366,000
G180: ㅇ 조리원 500NTD×183일×4시간 | H180: = | I180: =500*183*4 -> 366,000
G181: 3. 운영비 | I181: =SUM(I182:I182) -> 16,200
G182: ㅇ 가스비 750NTD×19주 | H182: = | I182: =750*19+1950 -> 16,200
G183: 4. 유치원 간식비 | I183: =SUM(I184:I184) -> 72,000
G184: ㅇ유치원 간식비 20NTD×20명×180일 | H184: = | I184: =180*20*20 -> 72,000
B185: - 방과후학교교육활동비 | C185: 345,600 | E185: =SUM(I185,I188) -> 345,600 | F185: =E185-C185 -> 0 | G185: 1. 방과후학교 운영 | I185: =SUM(I186:I187) -> 153,600
G186: ㅇ강사비 180NTD×8명×24회×4강좌 | H186: = | I186: =180*8*24*4 -> 138,240
G187: ㅇ수용비 20NTD×8명×24회×4강좌 | H187: = | I187: =20*8*24*4 -> 15,360
G188: 2. 토요한글학교 운영 | I188: =SUM(I189:I190) -> 192,000
G189: ㅇ강사수당 | H189: = | I189: 24,000
G190: ㅇ관리자 수당 14,000NTD×12월 | H190: = | I190: =14000*12 -> 168,000
B191: - 기타수익자 부담경비 | C191: 531,700 | E191: =SUM(I191,I194,I196) -> 531,700 | F191: =E191-C191 -> 0 | G191: 1. 통학차량 운영 | I191: =SUM(I192:I193) -> 509,600
G192: ㅇ통학차량 기사인건비(110일분) 335NTD×1명×6시간×130일 | H192: = | I192: =335*1*6*110 -> 221,100
G193: ㅇ통학차량 기사인건비(110일분) 435NTD×1명×6시간×130일 | H193: = | I193: =435*110*6+1400 -> 288,500
G194: 2. 졸업앨범 제작(초등학교) | I194: =SUM(I195:I195) -> 5,100
G195: ㅇ졸업앨범제작비 3명× 1,700 NTD | H195: = | I195: =1700*3 -> 5,100
G196: 3. 졸업앨범 제작(유치원) | I196: =SUM(I197:I197) -> 17,000
G197: ㅇ졸업앨범제작비 10명× 1,700 NTD | H197: = | I197: =10*1700 -> 17,000
A198: 예비비및기타 | C198: 0 | D198: 0 | E198: =I198 -> 0 | F198: 0 | H198: = | I198: =I200+I202+I204+I206 -> 0
B200: - 예비비 | C200: 0 | D200: 0 | F200: 0 | G200: 1. 예비비
B202: - 다음연도이월금 | C202: 0 | D202: 0 | E202: =I202 -> 0 | F202: 0 | G202: 1. 다음연도 이월금 | I202: =I203 -> 0
B204: - 적립금 | C204: 0 | D204: 0 | E204: 0 | F204: 0 | G204: 1. 적립금 | I204: 0
B206: - 환차손 | C206: 0 | D206: 0 | E206: 0 | F206: 0 | G206: 1. 환차손 | I206: 0
A208: 합 계 | C208: =SUM(C198,C166,C161,C157,C49,C5) -> 20,196,272 | D208: 0 | E208: =SUM(E198,E166,E161,E157,E49,E5) -> 19,966,577 | F208: =E208-C208 -> -229,695
